[Event "Fredericia IM 2019"]
[Site "Fredericia"]
[Date "2019.05.29"]
[Round "1.6"]
[White "Kakulidis, WCM Ellen"]
[Black "Sahl, WIM Sheila Barth"]
[Result "*"]
[ECO "A45"]
[WhiteElo "2014"]
[BlackElo "2127"]
[Annotator "ChessBase"]
[PlyCount "29"]
[EventDate "2019.05.29"]
[EventType "tourn"]
[EventCountry "DEN"]
[SourceTitle "playchess.com"]
[Source "ChessBase"]
[SourceQuality "1"]
[TimeControl "40/5400+30:1800+30"]

1. d4 {[%emt 0:00:00]} Nf6 {[%emt 0:00:00]} 2. g3 {[%emt 0:00:00]} d5 {[%emt 0:00:00]} 3. Nf3 {[%emt 0:00:00]} Bf5 {[%emt 0:00:18]} 4. c4 {[%emt 0:00:25]} c6 {[%emt 0:00:39]} 5. Nc3 {[%emt 0:00:39]} e6 {[%emt 0:00:26]} 6. Nh4 {[%emt 0:01:55]} dxc4 {[%emt 0:02:17]} 7. Nxf5 {[%emt 0:00:21]} exf5 {[%emt 0:00:04]} 8. e3 {[%emt 0:01:16]} Nbd7 {[%emt 0:04:41]} 9. Bxc4 {[%emt 0:00:28]} Nb6 {[%emt 0:00:22]} 10. Bf1 {[%emt 0:00:36]} Be7 {[%emt 0:04:27]} 11. Bg2 {[%emt 0:00:52]} O-O {[%emt 0:00:30]} 12. O-O {[%emt 0:00:52]} Re8 {[%emt 0:06:36]} 13. Qc2 {[%emt 0:14:21]} g6 {[%emt 0:01:23]} 14. b3 {[%emt 0:08:03]} Nbd5 {[%emt 0:04:26]} 15. Bb2 {[%emt 0:02:38]} *

[Event "Fredericia IM 2019"]
[Site "Fredericia"]
[Date "2019.05.29"]
[Round "1.7"]
[White "Mayrhuber, WFM Nikola"]
[Black "Sucikova, WFM Svetlana"]
[Result "*"]
[ECO "E08"]
[WhiteElo "1985"]
[BlackElo "2110"]
[Annotator "ChessBase"]
[PlyCount "26"]
[EventDate "2019.05.29"]
[EventType "tourn"]
[EventCountry "DEN"]
[SourceTitle "playchess.com"]
[Source "ChessBase"]
[SourceQuality "1"]
[TimeControl "40/5400+30:1800+30"]

1. d4 {[%emt 0:00:00]} d5 {[%emt 0:00:14]} 2. Nf3 {[%emt 0:00:00]} Nf6 {[%emt 0:00:39]} 3. c4 {[%emt 0:00:07]} e6 {[%emt 0:00:42]} 4. g3 {[%emt 0:00:33]} Be7 {[%emt 0:00:26]} 5. Bg2 {[%emt 0:00:32]} O-O {[%emt 0:00:23]} 6. O-O {[%emt 0:00:15]} c6 {[%emt 0:00:12]} 7. Qc2 {[%emt 0:02:40]} Nbd7 {[%emt 0:01:11]} 8. b3 {[%emt 0:02:29]} b6 {[%emt 0:01:58]} 9. Rd1 {[%emt 0:00:36]} Qc7 {[%emt 0:09:52]} 10. cxd5 {[%emt 0:12:00]} exd5 {[%emt 0:00:22]} 11. Nc3 {[%emt 0:02:39]} Bd6 {[%emt 0:00:09]} 12. Bb2 {[%emt 0:04:08]} Re8 {[%emt 0:07:25]} 13. Rac1 {[%emt 0:03:00]} Ba6 {[%emt 0:00:09]} *

[Event "Fredericia IM 2019"]
[Site "Fredericia"]
[Date "2019.05.30"]
[Round "2.1"]
[White "Devereaux, Maxim L"]
[Black "Fries-Nielsen, Niels Jorgen"]
[Result "1/2-1/2"]
[ECO "B30"]
[WhiteElo "2342"]
[BlackElo "2328"]
[Annotator "ChessBase"]
[PlyCount "60"]
[EventDate "2019.05.29"]
[EventType "tourn"]
[EventCountry "DEN"]
[SourceTitle "playchess.com"]
[Source "ChessBase"]
[SourceQuality "1"]
[TimeControl "40/5400+30:1800+30"]

1. e4 {[%emt 0:00:00]} c5 {[%emt 0:03:27]} 2. Nf3 {[%emt 0:00:33]} Nc6 {[%emt 0:02:41]} 3. Bb5 {[%emt 0:00:40]} d6 {[%emt 0:05:45]} 4. O-O {[%emt 0:01:48]} Bd7 {[%emt 0:02:10]} 5. Re1 {[%emt 0:03:08]} Nf6 {[%emt 0:04:48]} 6. c4 {[%emt 0:08:35]} g6 {[%emt 0:06:07]} 7. Nc3 {[%emt 0:01:56]} Bg7 {[%emt 0:02:51]} 8. Bxc6 {[%emt 0:14:19]} Bxc6 {[%emt 0:03:15]} 9. d4 {[%emt 0:00:05]} cxd4 {[%emt 0:03:34]} 10. Nxd4 {[%emt 0:00:06]} O-O {[%emt 0:02:10]} 11. b3 {[%emt 0:06:46]} Re8 {[%emt 0:04:57]} 12. Bb2 {[%emt 0:03:55]} Rc8 {[%emt 0:04:08]} 13. Qd2 {[%emt 0:05:04]} Qa5 {[%emt 0:03:37]} 14. Rad1 {[%emt 0:01:33]} Bd7 {[%emt 0:04:43]} 15. h3 {[%emt 0:03:04]} a6 {[%emt 0:02:52]} 16. a4 {[%emt 0:06:35]} Qb4 {[%emt 0:07:00]} 17. Qd3 {[%emt 0:03:29]} e5 {[%emt 0:04:30]} 18. Na2 {[%emt 0:01:56]} Qc5 {[%emt 0:01:22]} 19. Nf3 {[%emt 0:05:41]} b5 {[%emt 0:02:27]} 20. axb5 {[%emt 0:03:56]} axb5 {[%emt 0:00:12]} 21. Qxd6 {[%emt 0:01:50]} bxc4 {[%emt 0:05:19]} 22. Qxc5 {[%emt 0:05:50]} Rxc5 {[%emt 0:00:02]} 23. bxc4 {[%emt 0:00:08]} Rxc4 {[%emt 0:05:08]} 24. Bxe5 {[%emt 0:02:48]} Ba4 {[%emt 0:01:35]} 25. Rd4 {[%emt 0:02:18]} Rxd4 {[%emt 0:01:25]} 26. Bxd4 {[%emt 0:00:05]} Nxe4 {[%emt 0:02:28]} 27. Bxg7 {[%emt 0:00:37]} Kxg7 {[%emt 0:00:02]} 28. Re3 {[%emt 0:00:52]} Nf6 {[%emt 0:04:29]} 29. Rxe8 {[%emt 0:00:19]} Bxe8 {[%emt 0:00:17]} 30. Nc3 {[%emt 0:00:04]} Bc6 {[%emt 0:00:13]} 1/2-1/2

[Event "Fredericia IM 2019"]
[Site "Fredericia"]
[Date "2019.05.30"]
[Round "2.2"]
[White "Antonsen, Mikkel"]
[Black "Sorensen, Hampus"]
[Result "0-1"]
[ECO "D11"]
[WhiteElo "2423"]
[BlackElo "2343"]
[Annotator "ChessBase"]
[PlyCount "78"]
[EventDate "2019.05.29"]
[EventType "tourn"]
[EventCountry "DEN"]
[SourceTitle "playchess.com"]
[Source "ChessBase"]
[SourceQuality "1"]
[TimeControl "40/5400+30:1800+30"]

1. d4 {[%emt 0:00:00]} d5 {[%emt 0:00:00]} 2. c4 {[%emt 0:00:04]} c6 {[%emt 0:00:26]} 3. Nf3 {[%emt 0:00:06]} Nf6 {[%emt 0:00:39]} 4. e3 {[%emt 0:00:09]} a6 {[%emt 0:00:29]} 5. Bd3 {[%emt 0:10:16]} Bg4 {[%emt 0:01:22]} 6. Nbd2 {[%emt 0:00:35]} e6 {[%emt 0:00:38]} 7. Qc2 {[%emt 0:00:28]} dxc4 {[%emt 0:06:28]} 8. Bxc4 {[%emt 0:15:03]} Nbd7 {[%emt 0:03:33]} 9. h3 {[%emt 0:02:02]} Bh5 {[%emt 0:03:22]} 10. e4 {[%emt 0:05:57]} c5 {[%emt 0:18:36]} 11. e5 {[%emt 0:21:12]} Nd5 {[%emt 0:06:35]} 12. Bxd5 {[%emt 0:00:25]} exd5 {[%emt 0:00:01]} 13. O-O {[%emt 0:00:18]} Qb6 {[%emt 0:05:30]} 14. b3 {[%emt 0:08:52]} Bg6 {[%emt 0:03:55]} 15. Qd1 {[%emt 0:01:08]} Be7 {[%emt 0:02:37]} 16. Bb2 {[%emt 0:07:27]} O-O {[%emt 0:00:20]} 17. Re1 {[%emt 0:00:02]} Rac8 {[%emt 0:05:53]} 18. Nf1 {[%emt 0:00:18]} Rfd8 {[%emt 0:02:50]} 19. Ne3 {[%emt 0:04:42]} Nf8 {[%emt 0:00:28]} 20. dxc5 {[%emt 0:00:15]} Bxc5 {[%emt 0:00:32]} 21. Bd4 {[%emt 0:00:05]} Ne6 {[%emt 0:05:47]} 22. Bxc5 {[%emt 0:00:09]} Qxc5 {[%emt 0:07:56]} 23. Rc1 {[%emt 0:02:33]} Qxc1 {[%emt 0:00:25]} 24. Qxc1 {[%emt 0:00:03]} Rxc1 {[%emt 0:00:03]} 25. Rxc1 {[%emt 0:00:05]} d4 {[%emt 0:07:47]} 26. Nc4 {[%emt 0:00:20]} b5 {[%emt 0:00:48]} 27. Ncd2 {[%emt 0:03:22]} Bd3 {[%emt 0:06:56]} 28. b4 {[%emt 0:02:55]} h6 {[%emt 0:05:17]} 29. Rc6 {[%emt 0:00:53]} Be2 {[%emt 0:00:19]} 30. Rxa6 {[%emt 0:05:53]} d3 {[%emt 0:00:53]} 31. Ne1 {[%emt 0:02:07]} Rc8 {[%emt 0:01:02]} 32. f3 {[%emt 0:00:25]} Rc1 {[%emt 0:00:33]} 33. Kf2 {[%emt 0:00:07]} Rd1 {[%emt 0:00:15]} 34. Ne4 {[%emt 0:05:13]} d2 {[%emt 0:00:09]} 35. Nxd2 {[%emt 0:00:27]} Rxd2 {[%emt 0:00:02]} 36. Ke3 {[%emt 0:00:06]} Rb2 {[%emt 0:00:10]} 37. a4 {[%emt 0:00:22]} bxa4 {[%emt 0:00:29]} 38. Rxa4 {[%emt 0:00:05]} Bb5 {[%emt 0:00:09]} 39. Ra8+ {[%emt 0:01:04]} Kh7 {[%emt 0:00:04]} 0-1

[Event "Fredericia IM 2019"]
[Site "Fredericia"]
[Date "2019.05.30"]
[Round "2.3"]
[White "Vasli, Aref"]
[Black "Pedersen, Nicolai Kvist Brondt"]
[Result "1/2-1/2"]
[ECO "B47"]
[WhiteElo "2346"]
[BlackElo "2325"]
[Annotator "ChessBase"]
[PlyCount "62"]
[EventDate "2019.05.29"]
[EventType "tourn"]
[EventCountry "DEN"]
[SourceTitle "playchess.com"]
[Source "ChessBase"]
[SourceQuality "1"]
[TimeControl "40/5400+30:1800+30"]

1. e4 {[%emt 0:00:00]} c5 {[%emt 0:00:00]} 2. Nf3 {[%emt 0:00:00]} e6 {[%emt 0:00:00]} 3. d4 {[%emt 0:00:17]} cxd4 {[%emt 0:00:00]} 4. Nxd4 {[%emt 0:00:07]} Nc6 {[%emt 0:00:00]} 5. Nc3 {[%emt 0:00:13]} Qc7 {[%emt 0:00:00]} 6. g3 {[%emt 0:00:08]} a6 {[%emt 0:00:11]} 7. Bg2 {[%emt 0:00:09]} d6 {[%emt 0:00:13]} 8. O-O {[%emt 0:00:20]} Bd7 {[%emt 0:00:06]} 9. Re1 {[%emt 0:06:16]} Nxd4 {[%emt 0:00:40]} 10. Qxd4 {[%emt 0:00:11]} Nf6 {[%emt 0:00:17]} 11. a4 {[%emt 0:16:52]} Be7 {[%emt 0:00:33]} 12. Be3 {[%emt 0:05:09]} O-O {[%emt 0:05:15]} 13. h3 {[%emt 0:00:36]} Bc6 {[%emt 0:04:08]} 14. a5 {[%emt 0:04:42]} Nd7 {[%emt 0:06:25]} 15. Qc4 {[%emt 0:15:59]} Rac8 {[%emt 0:03:15]} 16. Qe2 {[%emt 0:01:10]} Bf6 {[%emt 0:05:18]} 17. Red1 {[%emt 0:08:21]} Nc5 {[%emt 0:20:32]} 18. Qc4 {[%emt 0:05:43]} Nd7 {[%emt 0:11:27]} 19. Qb4 {[%emt 0:00:55]} Be7 {[%emt 0:01:15]} 20. Na4 {[%emt 0:15:00]} Bxa4 {[%emt 0:09:51]} 21. Qxa4 {[%emt 0:00:19]} Ne5 {[%emt 0:03:35]} 22. c3 {[%emt 0:00:30]} Nc4 {[%emt 0:02:28]} 23. Bc1 {[%emt 0:00:44]} Bd8 {[%emt 0:03:37]} 24. Qb4 {[%emt 0:12:50]} Nxa5 {[%emt 0:03:52]} 25. Qxd6 {[%emt 0:02:26]} Qxd6 {[%emt 0:03:29]} 26. Rxd6 {[%emt 0:00:02]} Nb3 {[%emt 0:01:00]} 27. Rb1 {[%emt 0:00:02]} Bc7 {[%emt 0:01:05]} 28. Rd1 {[%emt 0:02:35]} Nxc1 {[%emt 0:00:15]} 29. Rbxc1 {[%emt 0:00:02]} Rcd8 {[%emt 0:01:31]} 30. Kf1 {[%emt 0:00:22]} Rxd1+ {[%emt 0:00:11]} 31. Rxd1 {[%emt 0:00:08]} Rd8 {[%emt 0:00:17]} 1/2-1/2

[Event "Fredericia IM 2019"]
[Site "Fredericia"]
[Date "2019.05.30"]
[Round "2.4"]
[White "Ahlander, Bjorn"]
[Black "Easwaralingam, Adesh"]
[Result "1-0"]
[ECO "E48"]
[WhiteElo "2421"]
[BlackElo "2123"]
[Annotator "ChessBase"]
[PlyCount "133"]
[EventDate "2019.05.29"]
[EventType "tourn"]
[EventCountry "DEN"]
[SourceTitle "playchess.com"]
[Source "ChessBase"]
[SourceQuality "1"]
[TimeControl "40/5400+30:1800+30"]

1. d4 {[%emt 0:00:00]} Nf6 {[%emt 0:00:00]} 2. c4 {[%emt 0:00:03]} e6 {[%emt 0:00:19]} 3. Nc3 {[%emt 0:00:30]} Bb4 {[%emt 0:00:30]} 4. e3 {[%emt 0:00:30]} O-O {[%emt 0:00:44]} 5. Bd3 {[%emt 0:00:54]} d5 {[%emt 0:02:16]} 6. Nf3 {[%emt 0:00:45]} dxc4 {[%emt 0:00:55]} 7. Bxc4 {[%emt 0:00:03]} Nbd7 {[%emt 0:01:57]} 8. O-O {[%emt 0:01:04]} c5 {[%emt 0:00:28]} 9. a3 {[%emt 0:01:36]} Bxc3 {[%emt 0:00:34]} 10. bxc3 {[%emt 0:00:03]} b6 {[%emt 0:02:44]} 11. a4 {[%emt 0:06:17]} Qc7 {[%emt 0:04:20]} 12. Be2 {[%emt 0:06:29]} a6 {[%emt 0:09:06]} 13. Ba3 {[%emt 0:00:36]} Rd8 {[%emt 0:04:47]} 14. Qb3 {[%emt 0:01:59]} Bb7 {[%emt 0:05:07]} 15. Rfd1 {[%emt 0:00:16]} Rdb8 {[%emt 0:12:31]} 16. c4 {[%emt 0:03:49]} Rd8 {[%emt 0:04:21]} 17. Bb2 {[%emt 0:03:01]} Rab8 {[%emt 0:06:47]} 18. Rac1 {[%emt 0:02:25]} h6 {[%emt 0:06:20]} 19. h3 {[%emt 0:00:08]} Rbc8 {[%emt 0:00:54]} 20. d5 {[%emt 0:01:18]} exd5 {[%emt 0:01:12]} 21. cxd5 {[%emt 0:00:05]} Qd6 {[%emt 0:02:03]} 22. Nh4 {[%emt 0:05:12]} Bxd5 {[%emt 0:06:52]} 23. Qc3 {[%emt 0:01:17]} Qf8 {[%emt 0:03:03]} 24. Bxa6 {[%emt 0:03:44]} Ra8 {[%emt 0:01:37]} 25. Bb5 {[%emt 0:00:04]} Be6 {[%emt 0:03:49]} 26. Qc2 {[%emt 0:03:52]} Qe7 {[%emt 0:02:06]} 27. e4 {[%emt 0:07:13]} Rac8 {[%emt 0:05:48]} 28. Re1 {[%emt 0:01:12]} Nh5 {[%emt 0:03:45]} 29. Nf3 {[%emt 0:03:20]} Nf4 {[%emt 0:01:54]} 30. Qd2 {[%emt 0:02:43]} Ng6 {[%emt 0:01:13]} 31. Qe3 {[%emt 0:00:03]} Nf6 {[%emt 0:01:59]} 32. Nd2 {[%emt 0:00:51]} Nh5 {[%emt 0:00:59]} 33. Nc4 {[%emt 0:02:27]} Bxc4 {[%emt 0:01:03]} 34. Bxc4 {[%emt 0:00:05]} Ne5 {[%emt 0:00:03]} 35. Bd5 {[%emt 0:06:49]} Nf6 {[%emt 0:00:53]} 36. Qb3 {[%emt 0:01:13]} c4 {[%emt 0:02:58]} 37. Bxc4 {[%emt 0:02:00]} Nfd7 {[%emt 0:00:40]} 38. Bb5 {[%emt 0:09:23]} Rxc1 {[%emt 0:00:43]} 39. Rxc1 {[%emt 0:00:35]} Nc5 {[%emt 0:00:15]} 40. Qg3 {[%emt 0:00:09]} Ng6 {[%emt 0:01:34]} 41. Qc3 {[%emt 0:43:16]} Ne6 {[%emt 0:06:14]} 42. Qe3 {[%emt 0:00:00]} Ngf4 {[%emt 0:05:21]} 43. Kh2 {[%emt 0:00:00]} Qd6 {[%emt 0:01:10]} 44. Ba3 {[%emt 0:00:00]} Qd2 {[%emt 0:05:41]} 45. Qxd2 {[%emt 0:00:00]} Rxd2 {[%emt 0:00:05]} 46. Rf1 {[%emt 0:00:00]} Nd3 {[%emt 0:01:40]} 47. Kg3 {[%emt 0:00:00]} Nec5 {[%emt 0:01:51]} 48. f3 {[%emt 0:08:03]} Nxa4 {[%emt 0:05:14]} 49. Bxa4 {[%emt 0:00:37]} Ra2 {[%emt 0:00:03]} 50. Rb1 {[%emt 0:00:32]} Rxa3 {[%emt 0:00:05]} 51. Bc2 {[%emt 0:00:03]} Nc5 {[%emt 0:01:08]} 52. Rxb6 {[%emt 0:00:29]} Ra2 {[%emt 0:00:14]} 53. Bb1 {[%emt 0:02:41]} Rd2 {[%emt 0:01:08]} 54. h4 {[%emt 0:00:34]} h5 {[%emt 0:01:12]} 55. Rb5 {[%emt 0:01:36]} Ne6 {[%emt 0:00:05]} 56. Ra5 {[%emt 0:00:30]} g6 {[%emt 0:00:56]} 57. Ba2 {[%emt 0:00:13]} Nd4 {[%emt 0:00:42]} 58. Ra8+ {[%emt 0:02:23]} Kg7 {[%emt 0:00:26]} 59. Ra7 {[%emt 0:00:03]} Ne2+ {[%emt 0:00:51]} 60. Kh2 {[%emt 0:00:09]} Kf6 {[%emt 0:00:56]} 61. Rxf7+ {[%emt 0:00:45]} Ke5 {[%emt 0:00:04]} 62. Bc4 {[%emt 0:00:46]} Nf4 {[%emt 0:01:03]} 63. Bf1 {[%emt 0:00:06]} Rd1 {[%emt 0:01:01]} 64. Kg1 {[%emt 0:00:17]} Ne2+ {[%emt 0:00:34]} 65. Kf2 {[%emt 0:00:09]} Nf4 {[%emt 0:00:27]} 66. g3 {[%emt 0:00:53]} Rd2+ {[%emt 0:00:25]} 67. Ke3 {[%emt 0:00:59]} 1-0

[Event "Fredericia IM 2019"]
[Site "Fredericia"]
[Date "2019.05.30"]
[Round "2.5"]
[White "Jacobsen, Mikkel Manosri"]
[Black "Olsen, Filip Boe"]
[Result "1/2-1/2"]
[ECO "A06"]
[WhiteElo "2319"]
[BlackElo "2394"]
[Annotator "ChessBase"]
[PlyCount "116"]
[EventDate "2019.05.29"]
[EventType "tourn"]
[EventCountry "DEN"]
[SourceTitle "playchess.com"]
[Source "ChessBase"]
[SourceQuality "1"]
[TimeControl "40/5400+30:1800+30"]

1. Nf3 {[%emt 0:00:00]} d5 {[%emt 0:00:16]} 2. b3 {[%emt 0:00:00]} c5 {[%emt 0:00:09]} 3. Bb2 {[%emt 0:00:00]} Nc6 {[%emt 0:00:13]} 4. e3 {[%emt 0:00:00]} a6 {[%emt 0:00:32]} 5. d4 {[%emt 0:01:03]} cxd4 {[%emt 0:00:39]} 6. exd4 {[%emt 0:00:08]} Nf6 {[%emt 0:00:48]} 7. Be2 {[%emt 0:03:28]} Bf5 {[%emt 0:02:27]} 8. Nh4 {[%emt 0:01:01]} Bc8 {[%emt 0:01:51]} 9. Nd2 {[%emt 0:02:29]} e6 {[%emt 0:02:23]} 10. Nhf3 {[%emt 0:00:43]} Bd6 {[%emt 0:00:45]} 11. O-O {[%emt 0:01:11]} O-O {[%emt 0:01:23]} 12. c4 {[%emt 0:01:33]} dxc4 {[%emt 0:04:48]} 13. bxc4 {[%emt 0:00:14]} b6 {[%emt 0:10:46]} 14. Rb1 {[%emt 0:04:50]} Qc7 {[%emt 0:07:28]} 15. Re1 {[%emt 0:06:08]} Rb8 {[%emt 0:18:33]} 16. Bf1 {[%emt 0:07:57]} b5 {[%emt 0:08:53]} 17. d5 {[%emt 0:03:50]} Ng4 {[%emt 0:09:54]} 18. g3 {[%emt 0:19:58]} Na5 {[%emt 0:12:36]} 19. Ne4 {[%emt 0:18:41]} Nxc4 {[%emt 0:04:57]} 20. Bxc4 {[%emt 0:00:36]} bxc4 {[%emt 0:00:24]} 21. h3 {[%emt 0:00:10]} c3 {[%emt 0:02:12]} 22. Bxc3 {[%emt 0:03:57]} Rxb1 {[%emt 0:00:19]} 23. Qxb1 {[%emt 0:00:07]} exd5 {[%emt 0:02:12]} 24. Nxd6 {[%emt 0:12:06]} Qxc3 {[%emt 0:00:46]} 25. Ng5 {[%emt 0:04:00]} Nf6 {[%emt 0:00:55]} 26. Rc1 {[%emt 0:02:15]} Qe5 {[%emt 0:03:32]} 27. Ngxf7 {[%emt 0:01:55]} Qe6 {[%emt 0:01:33]} 28. Rxc8 {[%emt 0:03:00]} Rxc8 {[%emt 0:00:05]} 29. Nxc8 {[%emt 0:00:06]} Kxf7 {[%emt 0:01:15]} 30. Qb7+ {[%emt 0:01:14]} Kg6 {[%emt 0:00:33]} 31. Ne7+ {[%emt 0:00:12]} Kh6 {[%emt 0:00:32]} 32. Qb4 {[%emt 0:01:39]} d4 {[%emt 0:01:14]} 33. Qd2+ {[%emt 0:00:26]} g5 {[%emt 0:00:12]} 34. h4 {[%emt 0:00:56]} Ne4 {[%emt 0:00:21]} 35. hxg5+ {[%emt 0:00:05]} Nxg5 {[%emt 0:00:18]} 36. Qb4 {[%emt 0:01:28]} a5 {[%emt 0:01:08]} 37. Qc5 {[%emt 0:00:02]} Qe1+ {[%emt 0:00:13]} 38. Kg2 {[%emt 0:00:09]} Qe4+ {[%emt 0:00:25]} 39. Kf1 {[%emt 0:01:05]} Qh1+ {[%emt 0:01:01]} 40. Ke2 {[%emt 0:00:02]} Qf3+ {[%emt 0:00:52]} 41. Kf1 {[%emt 0:30:02]} Qh1+ {[%emt 0:13:03]} 42. Ke2 {[%emt 0:00:00]} Qh5+ {[%emt 0:01:20]} 43. Kf1 {[%emt 0:00:00]} Qh3+ {[%emt 0:02:18]} 44. Ke2 {[%emt 0:00:00]} Qe6+ {[%emt 0:00:46]} 45. Kd1 {[%emt 0:00:00]} Ne4 {[%emt 0:02:37]} 46. Qc6 {[%emt 0:00:00]} Nxf2+ {[%emt 0:00:46]} 47. Kc1 {[%emt 0:00:00]} Qxc6+ {[%emt 0:02:32]} 48. Nxc6 {[%emt 0:00:00]} Nd3+ {[%emt 0:03:12]} 49. Kd2 {[%emt 0:00:00]} Nb4 {[%emt 0:00:12]} 50. Nxa5 {[%emt 0:00:00]} Nxa2 {[%emt 0:00:06]} 51. Nc6 {[%emt 0:00:00]} Nc3 {[%emt 0:00:07]} 52. Kd3 {[%emt 0:00:00]} Nb5 {[%emt 0:00:08]} 53. Nxd4 {[%emt 0:00:00]} Nxd4 {[%emt 0:00:01]} 54. Kxd4 {[%emt 0:00:00]} Kg5 {[%emt 0:00:07]} 55. Ke3 {[%emt 0:00:00]} Kg4 {[%emt 0:00:06]} 56. Kf2 {[%emt 0:00:00]} h5 {[%emt 0:00:04]} 57. Kg2 {[%emt 0:00:00]} h4 {[%emt 0:00:04]} 58. gxh4 {[%emt 0:00:00]} Kxh4 {[%emt 0:00:04]} 1/2-1/2

[Event "Fredericia IM 2019"]
[Site "Fredericia"]
[Date "2019.05.30"]
[Round "3.2"]
[White "Pedersen, Nicolai Kvist Brondt"]
[Black "Devereaux, Maxim L"]
[Result "1-0"]
[ECO "E04"]
[WhiteElo "2325"]
[BlackElo "2342"]
[Annotator "ChessBase"]
[PlyCount "69"]
[EventDate "2019.05.29"]
[EventType "tourn"]
[EventCountry "DEN"]
[SourceTitle "playchess.com"]
[Source "ChessBase"]
[SourceQuality "1"]
[TimeControl "40/5400+30:1800+30"]

1. d4 {[%emt 0:00:00]} Nf6 {[%emt 0:00:00]} 2. Nf3 {[%emt 0:00:00]} e6 {[%emt 0:00:00]} 3. c4 {[%emt 0:00:00]} d5 {[%emt 0:00:07]} 4. g3 {[%emt 0:00:00]} dxc4 {[%emt 0:00:17]} 5. Bg2 {[%emt 0:00:13]} a6 {[%emt 0:00:13]} 6. Ne5 {[%emt 0:03:06]} c5 {[%emt 0:02:22]} 7. Na3 {[%emt 0:00:49]} cxd4 {[%emt 0:08:25]} 8. Naxc4 {[%emt 0:00:06]} Bb4+ {[%emt 0:00:45]} 9. Bd2 {[%emt 0:00:52]} Bxd2+ {[%emt 0:01:04]} 10. Qxd2 {[%emt 0:00:25]} O-O {[%emt 0:00:50]} 11. O-O {[%emt 0:01:36]} Nc6 {[%emt 0:16:04]} 12. Nxc6 {[%emt 0:04:18]} bxc6 {[%emt 0:00:10]} 13. Rfd1 {[%emt 0:00:24]} Rb8 {[%emt 0:01:08]} 14. Qxd4 {[%emt 0:01:32]} Qxd4 {[%emt 0:06:00]} 15. Rxd4 {[%emt 0:02:23]} c5 {[%emt 0:01:40]} 16. Rd6 {[%emt 0:09:09]} Ne8 {[%emt 0:21:54]} 17. Rb6 {[%emt 0:06:12]} Rxb6 {[%emt 0:02:09]} 18. Nxb6 {[%emt 0:00:02]} Nf6 {[%emt 0:00:38]} 19. Rc1 {[%emt 0:03:26]} Bd7 {[%emt 0:00:41]} 20. Rxc5 {[%emt 0:02:09]} Bb5 {[%emt 0:06:34]} 21. Kf1 {[%emt 0:07:23]} g6 {[%emt 0:04:07]} 22. Ke1 {[%emt 0:05:15]} Ng4 {[%emt 0:05:54]} 23. h3 {[%emt 0:03:22]} Nf6 {[%emt 0:00:19]} 24. b3 {[%emt 0:03:17]} Kg7 {[%emt 0:03:21]} 25. Rc8 {[%emt 0:02:27]} Rxc8 {[%emt 0:01:57]} 26. Nxc8 {[%emt 0:00:07]} e5 {[%emt 0:02:24]} 27. Bb7 {[%emt 0:04:18]} Ne8 {[%emt 0:04:55]} 28. a4 {[%emt 0:04:11]} Bd7 {[%emt 0:00:35]} 29. Bxa6 {[%emt 0:00:22]} Bxh3 {[%emt 0:01:14]} 30. Bb7 {[%emt 0:03:46]} Bxc8 {[%emt 0:03:10]} 31. Bxc8 {[%emt 0:00:16]} Nd6 {[%emt 0:00:05]} 32. Bd7 {[%emt 0:01:47]} Kf6 {[%emt 0:01:18]} 33. a5 {[%emt 0:01:21]} Ke7 {[%emt 0:00:05]} 34. a6 {[%emt 0:00:59]} Kxd7 {[%emt 0:00:05]} 35. a7 {[%emt 0:00:06]} 1-0

[Event "Fredericia IM 2019"]
[Site "Fredericia"]
[Date "2019.05.30"]
[Round "3.3"]
[White "Fries-Nielsen, Niels Jorgen"]
[Black "Jacobsen, Mikkel Manosri"]
[Result "1/2-1/2"]
[ECO "A14"]
[WhiteElo "2328"]
[BlackElo "2319"]
[Annotator "ChessBase"]
[PlyCount "61"]
[EventDate "2019.05.29"]
[EventType "tourn"]
[EventCountry "DEN"]
[SourceTitle "playchess.com"]
[Source "ChessBase"]
[SourceQuality "1"]
[TimeControl "40/5400+30:1800+30"]

1. Nf3 d5 2. c4 e6 3. g3 Nf6 4. Bg2 Be7 5. O-O O-O 6. d3 c6 7. b3 a5 8. a3 Nbd7 9. Nc3 Re8 10. Bb2 Bf8 11. Qc2 Qb6 12. d4 {[%emt 0:27:40]} Qa6 {[%emt 0:22:43]} 13. c5 {[%emt 0:07:25]} b6 {[%emt 0:04:16]} 14. b4 {[%emt 0:04:29]} bxc5 {[%emt 0:02:00]} 15. bxc5 {[%emt 0:00:11]} Rb8 {[%emt 0:01:49]} 16. Rab1 {[%emt 0:02:47]} Be7 {[%emt 0:01:55]} 17. Rfe1 {[%emt 0:01:52]} Qa8 {[%emt 0:07:47]} 18. Bc1 {[%emt 0:16:49]} Rxb1 {[%emt 0:00:52]} 19. Qxb1 {[%emt 0:00:02]} Ba6 {[%emt 0:01:34]} 20. Bf4 {[%emt 0:02:00]} Nf8 {[%emt 0:05:50]} 21. Qc2 {[%emt 0:10:13]} N6d7 {[%emt 0:02:08]} 22. Rb1 {[%emt 0:01:11]} f6 {[%emt 0:01:42]} 23. e4 {[%emt 0:02:54]} g5 {[%emt 0:08:29]} 24. Be3 {[%emt 0:04:34]} Rb8 {[%emt 0:03:41]} 25. exd5 {[%emt 0:01:17]} Rxb1+ {[%emt 0:00:40]} 26. Qxb1 {[%emt 0:00:20]} cxd5 {[%emt 0:00:39]} 27. Nd2 {[%emt 0:02:50]} Bb7 {[%emt 0:02:40]} 28. Qb3 {[%emt 0:03:54]} Ng6 {[%emt 0:03:53]} 29. Bf1 {[%emt 0:03:20]} f5 {[%emt 0:02:18]} 30. f3 {[%emt 0:00:51]} Kg7 {[%emt 0:03:54]} 31. Bf2 {[%emt 0:01:12]} 1/2-1/2